fUST/lending_fUST_20240808
["ID","MTS","AMOUNT","RATE_DAILY","PERIOD"]
[334419877,1723077040790,-500.0,0.00028321,7]
[334419878,1723077040802,-597.2,0.00028321,7]
[334419879,1723077040812,-500.0,0.00028321,7]
[334419880,1723077040823,-500.0,0.00028321,7]
[334419881,1723077040833,-500.0,0.00028321,7]
[334419882,1723077040845,-500.0,0.00028321,7]
[334419883,1723077040856,-500.0,0.00028321,7]
[334419884,1723077040867,-500.0,0.00028321,7]
[334419885,1723077040877,-500.0,0.00028321,7]
[334419886,1723077040888,-500.0,0.00028321,7]
[334419887,1723077040899,-500.0,0.00028321,7]
[334419888,1723077040909,-500.0,0.00028321,7]
[334419889,1723077040921,-200.0,0.00028321,7]
[334419890,1723077040937,-403.93756262,0.00028321,7]
[334419891,1723077040948,-500.0,0.00028321,7]
[334419892,1723077040958,-500.0,0.00028321,7]
[334419893,1723077040969,-500.0,0.00028321,7]
[334419894,1723077040980,-500.0,0.00028321,7]
[334419895,1723077040990,-500.0,0.00028321,7]
[334419896,1723077041001,-500.0,0.00028321,7]
[334419897,1723077041012,-500.0,0.00028321,7]
[334419898,1723077041023,-500.0,0.00028321,7]
[334419899,1723077041034,-500.0,0.00028321,7]
[334419900,1723077041045,-500.0,0.00028321,7]
[334419901,1723077041055,-500.0,0.00028321,7]
[334419902,1723077041065,-500.0,0.00028321,7]
[334419903,1723077041076,-642.52398396,0.00028321,7]
[334419904,1723077041087,-500.0,0.00028321,7]
[334419905,1723077041098,-500.0,0.00028321,7]
[334419906,1723077041109,-1014.66,0.00028321,7]
[334419907,1723077041119,-500.0,0.00028321,7]
[334419908,1723077041130,-500.0,0.00028321,7]
[334419909,1723077041140,-500.0,0.00028321,7]
[334419910,1723077041151,-500.0,0.00028321,7]
[334419911,1723077041161,-1092.97,0.00028321,7]
[334419912,1723077041172,-504.22,0.00028321,7]
[334419913,1723077041185,-500.0,0.00028321,7]
[334419914,1723077041196,-500.0,0.00028321,7]
[334419915,1723077041207,-500.0,0.00028321,7]
[334419916,1723077041217,-601.68,0.00028321,7]
[334419917,1723077041228,-500.0,0.00028321,7]
[334419918,1723077041239,-500.0,0.00028321,7]
[334419919,1723077041249,-554.3,0.00028321,7]
[334419920,1723077041260,-500.0,0.00028321,7]
[334419921,1723077041271,-767.66,0.00028321,7]
[334419922,1723077041282,-1436.95,0.00028321,7]
[334419923,1723077041292,-643.64,0.00028321,7]
[334419924,1723077041303,-588.36,0.00028321,7]
[334419925,1723077041313,-500.0,0.00028321,7]
[334419926,1723077041324,-500.0,0.00028321,7]
[334419927,1723077041335,-500.0,0.00028321,7]
[334419928,1723077041345,-500.0,0.00028321,7]
[334419929,1723077041356,-500.0,0.00028321,7]
[334419930,1723077041366,-501.75314947,0.00028321,7]
[334419931,1723077041377,-500.0,0.00028321,7]
[334419932,1723077041388,-500.0,0.00028321,7]
[334419933,1723077041398,-500.0,0.00028321,7]
[334419934,1723077041408,-500.0,0.00028321,7]
[334419935,1723077041419,-500.0,0.00028321,7]
[334419936,1723077041432,-500.0,0.00028321,7]
[334419937,1723077041443,-500.0,0.00028321,7]
[334419938,1723077041453,-500.0,0.00028321,7]
[334419939,1723077041465,-500.0,0.00028321,7]
[334419940,1723077041475,-500.0,0.00028321,7]
[334419941,1723077041485,-500.0,0.00028321,7]
[334419942,1723077041496,-500.0,0.00028321,7]
[334419943,1723077041509,-500.0,0.00028321,7]
[334419944,1723077041521,-500.25828658,0.00028321,7]
[334419945,1723077041532,-500.0,0.00028321,7]
[334419946,1723077041543,-500.0,0.00028321,7]
[334419947,1723077041554,-500.0,0.00028321,7]
[334419948,1723077041565,-500.0,0.00028321,7]
[334419949,1723077041576,-500.0,0.00028321,7]
[334419950,1723077041586,-500.0,0.00028321,7]
[334419951,1723077041597,-501.15637128,0.00028321,7]
[334419952,1723077041608,-500.0,0.00028321,7]
[334419953,1723077041618,-500.0,0.00028321,7]
[334419954,1723077041628,-500.0,0.00028321,7]
[334419955,1723077041638,-503.66368819,0.00028321,2]
[334419956,1723077041649,-192.47619813,0.00028321,7]
[334419957,1723077041660,-500.0,0.00028321,7]
[334419958,1723077041670,-500.0,0.00028321,7]
[334419959,1723077041683,-527.11288338,0.00028321,7]
[334419960,1723077041694,-500.0,0.00028321,7]
[334419961,1723077041705,-500.0,0.00028321,7]
[334419962,1723077041716,-500.0,0.00028321,7]
[334419963,1723077041727,-500.0,0.00028321,7]
[334419964,1723077041737,-500.0,0.00028321,7]
[334419965,1723077041750,-500.0,0.00028321,7]
[334419966,1723077041761,-500.0,0.00028321,7]
[334419967,1723077041774,-500.0,0.00028321,7]
[334419968,1723077041784,-500.0,0.00028321,7]
[334419969,1723077041795,-500.0,0.00028321,7]
[334419970,1723077041807,-500.0,0.00028321,7]
[334419971,1723077041818,-500.0,0.00028321,7]
[334419972,1723077041827,-500.0,0.00028321,7]
[334419973,1723077041839,-500.0,0.00028321,7]
[334419974,1723077041850,-500.0,0.00028321,7]
[334419975,1723077041861,-501.86153908,0.00028321,7]
[334419976,1723077041872,-518.29535683,0.00028321,7]
[334419977,1723077041883,-500.0,0.00028321,7]
[334419978,1723077041895,-500.0,0.00028321,7]
[334419979,1723077041906,-500.0,0.00028321,7]
[334419980,1723077041919,-500.0,0.00028321,7]
[334419981,1723077041933,-500.0,0.00028321,7]
[334419982,1723077041945,-526.71203819,0.00028321,7]
[334419983,1723077041956,-154.45268599,0.00028321,7]
[334419984,1723077041967,-619.12845902,0.00028321,7]
[334419985,1723077041978,-500.0,0.00028321,7]
[334419986,1723077041988,-500.0,0.00028321,7]
[334419987,1723077041999,-500.0,0.00028321,5]
[334419988,1723077042009,-523.8019494,0.00028321,7]
[334419989,1723077042021,-500.0,0.00028321,7]
[334419990,1723077042031,-500.0,0.00028321,7]
[334420001,1723077042330,-500.0,0.00028321,7]
[334420002,1723077042346,-556.74644109,0.00028321,7]
[334420004,1723077042356,-500.0,0.00028321,7]
[334420005,1723077042373,-500.0,0.00028321,7]
[334420006,1723077042383,-500.0,0.00028321,7]
[334420007,1723077042393,-500.0,0.00028321,7]
[334420009,1723077042402,-1219.83,0.00028321,7]
[334420011,1723077042412,-405.89083413,0.00028321,7]
[334420013,1723077042422,-718.88,0.00028321,7]
[334420014,1723077042435,-500.0,0.00028321,7]
[334420015,1723077042445,-500.0,0.00028321,7]
[334420016,1723077042455,-500.0,0.00028321,7]
[334420017,1723077042464,-500.0,0.00028321,7]
[334420018,1723077042474,-500.0,0.00028321,7]
[334420019,1723077042484,-500.0,0.00028321,7]
[334420020,1723077042493,-500.0,0.00028321,7]
[334420021,1723077042503,-500.0,0.00028321,7]
[334420022,1723077042514,-671.24,0.00028321,7]
[334420023,1723077042524,-1058.92,0.00028321,7]
[334420024,1723077042534,-500.0,0.00028321,7]
[334420025,1723077042544,-500.0,0.00028321,7]
[334420026,1723077042554,-500.0,0.00028321,7]
[334420027,1723077042563,-500.0,0.00028321,7]
[334420028,1723077042573,-500.0,0.00028321,7]
[334420029,1723077042583,-863.49,0.00028321,7]
[334420030,1723077042592,-500.0,0.00028321,7]
[334420031,1723077042601,-500.0,0.00028321,7]
[334420032,1723077042611,-500.0,0.00028321,7]
[334420033,1723077042620,-500.0,0.00028321,7]
[334420034,1723077042630,-784.79,0.00028321,7]
[334420035,1723077042640,-500.0,0.00028321,7]
[334420036,1723077042650,-500.0,0.00028321,7]
[334420037,1723077042660,-567.22,0.00028321,7]
[334420038,1723077042670,-537.54,0.00028321,7]
[334420039,1723077042682,-500.0,0.00028321,7]
[334420040,1723077042692,-500.0,0.00028321,7]
[334420041,1723077042702,-500.0,0.00028321,2]
[334420042,1723077042712,-500.0,0.00028321,7]
[334420043,1723077042721,-500.0,0.00028321,7]
[334420044,1723077042730,-500.0,0.00028321,7]
[334420045,1723077042741,-500.0,0.00028321,7]
[334420046,1723077042751,-542.01,0.00028321,7]
[334420047,1723077042762,-500.0,0.00028321,7]
[334420048,1723077042773,-531.51816542,0.00028321,7]
[334420049,1723077042783,-500.0,0.00028321,7]
[334420050,1723077042793,-500.0,0.00028321,7]
[334420051,1723077042803,-278.97595133,0.00028321,7]
[334420052,1723077042813,-500.0,0.00028321,7]
[334420053,1723077042822,-500.0,0.00028321,7]
[334420054,1723077042832,-500.0,0.00028321,7]
[334420055,1723077042842,-500.0,0.00028321,7]
[334420056,1723077042852,-500.0,0.00028321,7]
[334420057,1723077042862,-504.39698816,0.00028321,7]
[334420058,1723077042871,-500.0,0.00028321,7]
[334420059,1723077042880,-500.0,0.00028321,7]
[334420060,1723077042891,-645.55270096,0.00028321,7]
[334420061,1723077042901,-500.0,0.00028321,7]
[334420062,1723077042911,-500.0,0.00028321,7]
[334420063,1723077042921,-151.0,0.00028321,7]
[334420064,1723077042934,-151.0,0.00028321,7]
[334420066,1723077042943,-151.0,0.00028321,7]
[334420068,1723077042954,-500.0,0.00028321,7]
[334420070,1723077042963,-500.0,0.00028321,7]
[334420072,1723077042973,-500.0,0.00028321,7]
[334420073,1723077042982,-500.0,0.00028321,7]
[334420075,1723077042991,-500.0,0.00028321,7]
[334420076,1723077043001,-500.0,0.00028321,7]
[334420077,1723077043011,-500.0,0.00028321,7]
[334420078,1723077043020,-500.0,0.00028321,7]
[334420079,1723077043030,-500.0,0.00028321,7]
[334420080,1723077043039,-502.16312647,0.00028321,7]
[334420081,1723077043049,-500.0,0.00028321,7]
[334420082,1723077043061,-500.0,0.00028321,7]
[334420083,1723077043072,-500.0,0.00028321,7]
[334420084,1723077043083,-501.2137023,0.00028321,7]
[334420085,1723077043092,-500.0,0.00028321,7]
[334420086,1723077043103,-500.0,0.00028321,7]
[334420087,1723077043115,-500.0,0.00028321,7]
[334420088,1723077043124,-500.0,0.00028321,7]
[334420089,1723077043135,-500.0,0.00028321,7]
[334420090,1723077043145,-500.0,0.00028321,7]
[334420091,1723077043154,-500.0,0.00028321,7]
[334420092,1723077043164,-500.0,0.00028321,7]
[334420093,1723077043176,-500.0,0.00028321,7]
[334420094,1723077043187,-500.0,0.00028321,7]
[334420095,1723077043196,-676.076068,0.00028321,7]
[334420096,1723077043206,-676.076068,0.00028321,7]
[334420097,1723077043215,-500.0,0.00028321,7]
[334420098,1723077043224,-676.076068,0.00028321,7]
[334420099,1723077043234,-390.87362543,0.00028321,7]
[334420100,1723077043245,-676.076068,0.00028321,7]
[334420101,1723077043255,-500.0,0.00028321,7]
[334420102,1723077043266,-676.076068,0.00028321,7]
[334420103,1723077043276,-676.076068,0.00028321,7]
[334420104,1723077043287,-676.076068,0.00028321,7]
[334420105,1723077043298,-676.076068,0.00028321,7]
[334420106,1723077043307,-500.0,0.00028321,7]
[334420107,1723077043318,-500.0,0.00028321,7]
[334420108,1723077043329,-500.0,0.00028321,7]
[334420109,1723077043339,-546.22,0.00028321,7]
[334420110,1723077043348,-500.0,0.00028321,7]
[334420111,1723077043358,-500.0,0.00028321,7]
[334420112,1723077043368,-500.0,0.00028321,7]
[334420113,1723077043378,-500.0,0.00028321,7]
[334420114,1723077043388,-500.0,0.00028321,7]
[334420115,1723077043398,-1022.58,0.00028321,7]
[334420116,1723077043410,-500.0,0.00028321,7]
[334420117,1723077043419,-500.0,0.00028321,7]
[334420119,1723077043430,-500.0,0.00028321,7]
[334420121,1723077043439,-500.91697882,0.00028321,7]
[334420123,1723077043449,-500.0,0.00028321,7]
[334420124,1723077043458,-426.23353534,0.00028321,7]
[334420125,1723077043467,-500.0,0.00028321,7]
[334420126,1723077043478,-500.0,0.00028321,7]
[334420127,1723077043488,-161.44553642,0.00028321,7]
[334420128,1723077043498,-500.0,0.00028321,7]
[334420129,1723077043510,-500.0,0.00028321,7]
[334420130,1723077043532,-500.0,0.00028321,7]
[334420131,1723077043542,-500.0,0.00028321,7]
[334420132,1723077043553,-500.0,0.00028321,7]
[334420133,1723077043564,-500.0,0.00028321,7]
[334420134,1723077043574,-500.0,0.00028321,7]
[334420135,1723077043584,-500.0,0.00028321,7]
[334420136,1723077043596,-500.0,0.00028322,7]
[334420137,1723077043606,-500.0,0.00028322,7]
[334420138,1723077043616,-500.0,0.00028322,7]
[334420139,1723077043626,-500.0,0.00028322,7]
[334420140,1723077043637,-500.0,0.00028322,7]
[334420141,1723077043647,-478.4678147,0.00028322,7]
[334420142,1723077043659,-500.0,0.00028322,7]
[334420143,1723077043670,-500.0,0.00028322,7]
[334420144,1723077043682,-500.0,0.00028322,7]
[334420145,1723077043697,-500.0,0.00028322,7]
[334420146,1723077043707,-500.0,0.00028322,7]
[334420147,1723077043717,-500.0,0.00028322,7]
[334420148,1723077043726,-1016.39,0.00028323,7]
[334420149,1723077043736,-1127.92,0.00028323,7]
[334420150,1723077043745,-500.0,0.00028323,7]
[334420151,1723077043759,-505.80472565,0.00028323,7]
[334420152,1723077043768,-1062.19,0.00028323,7]
[334420153,1723077043778,-500.0,0.00028323,7]
[334420154,1723077043791,-500.0,0.00028323,7]
[334420155,1723077043800,-500.0,0.00028323,7]
[334420156,1723077043813,-500.0,0.00028323,7]
[334420157,1723077043822,-1859.96,0.00028323,7]
[334420158,1723077043833,-500.0,0.00028323,7]
[334420159,1723077043845,-572.24,0.00028323,7]
[334420160,1723077043855,-500.0,0.00028323,7]
[334420161,1723077043866,-500.0,0.00028323,7]
[334420162,1723077043876,-500.0,0.00028323,7]
[334420163,1723077043887,-853.31,0.00028323,7]
[334420164,1723077043898,-500.0,0.00028323,7]
[334420165,1723077043908,-1375.34,0.00028323,7]
[334420166,1723077043917,-500.0,0.00028323,7]
[334420167,1723077043929,-1178.88,0.00028323,7]
[334420168,1723077043939,-500.0,0.00028323,2]
[334420169,1723077043949,-500.0,0.00028323,7]
[334420170,1723077043959,-616.74,0.00028323,7]
[334420171,1723077043969,-503.47788759,0.00028323,7]
[334420172,1723077043979,-500.0,0.00028323,7]
[334420173,1723077043989,-500.0,0.00028323,7]
[334420174,1723077044000,-500.0,0.00028323,7]
[334420175,1723077044009,-501.35793254,0.00028323,7]
[334420176,1723077044019,-507.33,0.00028323,7]
[334420177,1723077044029,-710.01,0.00028323,7]
[334420178,1723077044039,-500.0,0.00028323,7]
[334420179,1723077044048,-500.0,0.00028323,7]
[334420180,1723077044058,-737.72,0.00028323,7]
[334420181,1723077044068,-500.0,0.00028323,7]
[334420182,1723077044078,-500.0,0.00028323,7]
[334420183,1723077044088,-500.32935185,0.00028323,7]
[334420184,1723077044098,-500.0,0.00028323,7]
[334420185,1723077044108,-1400.43,0.00028323,7]
[334420186,1723077044118,-907.65,0.00028323,7]
[334420187,1723077044128,-500.0,0.00028323,7]
[334420188,1723077044138,-500.53809244,0.00028323,7]
[334420189,1723077044148,-500.0,0.00028323,7]
[334420190,1723077044158,-1000.0,0.00028323,2]
[334420191,1723077044168,-500.0,0.00028323,7]
[334420192,1723077044180,-500.0,0.00028323,7]
[334420193,1723077044189,-519.25959459,0.00028323,7]
[334420194,1723077044199,-1082.21,0.00028323,7]
[334420195,1723077044209,-548.48,0.00028323,7]
[334420196,1723077044219,-500.0,0.00028323,7]
[334420197,1723077044229,-1532.79,0.00028323,7]
[334420198,1723077044238,-251.82271593,0.00028323,7]
[334420199,1723077044518,-248.17728407,0.00028323,7]
[334420200,1723077044528,-1500.34,0.00028323,7]
[334420201,1723077044537,-500.0,0.00028323,7]
[334420202,1723077044547,-500.0,0.00028323,7]
[334420203,1723077044557,-500.0,0.00028323,7]
[334420204,1723077044566,-500.0,0.00028323,7]
[334420205,1723077044576,-500.0,0.00028323,7]
[334420206,1723077044586,-500.0,0.00028323,7]
[334420207,1723077044595,-500.0,0.00028323,7]
[334420208,1723077044604,-343.42499247,0.00028323,7]
[334420209,1723077044616,-831.71945954,0.00028323,7]
[334420210,1723077044897,-500.0,0.00028213,7]
[334420211,1723077044907,-500.0,0.00028213,7]
[334420212,1723077044917,-600.37554799,0.00028323,7]
[334420213,1723077044929,-500.0,0.00028323,7]
[334420214,1723077044938,-500.0,0.00028323,7]
[334420215,1723077044948,-603.8,0.00028323,7]
[334420216,1723077044957,-998.39,0.00028323,7]
[334420217,1723077044967,-759.26,0.00028323,7]
[334420218,1723077044979,-1889.08,0.00028323,7]
[334420219,1723077044989,-2880.76,0.00028323,7]
[334420220,1723077044998,-500.0,0.00028323,7]
[334420221,1723077045007,-151.0,0.00028323,7]
[334420222,1723077045017,-676.076068,0.00028323,7]
[334420223,1723077045027,-676.076073,0.00028323,7]
[334420224,1723077045036,-500.0,0.00028324,7]
[334420225,1723077045046,-500.0,0.00028324,7]
[334420226,1723077045055,-500.0,0.00028324,7]
[334420227,1723077045064,-500.0,0.00028324,7]
[334420228,1723077045074,-500.0,0.00028324,7]
[334420229,1723077045083,-500.0,0.00028324,7]
[334420230,1723077045093,-493.73,0.00028324,7]
[334420231,1723077045102,-500.0,0.00028324,7]
[334420232,1723077045112,-500.0,0.00028324,7]
[334420233,1723077045121,-500.0,0.00028324,7]
[334420234,1723077045131,-500.0,0.00028324,7]
[334420235,1723077045140,-298.39180136,0.00028324,7]
[334420236,1723077045150,-500.0,0.00028324,7]
[334420237,1723077045159,-500.0,0.00028324,7]
[334420238,1723077045169,-153.84165657,0.00028324,7]
[334420239,1723077045178,-288.63181647,0.00028325,7]
[334420240,1723077045187,-500.0,0.00028325,7]
[334420241,1723077045198,-500.0,0.00028325,7]
[334420242,1723077045208,-256.73327862,0.00028325,7]
[334420243,1723077045217,-500.0,0.00028325,7]
[334420244,1723077045227,-503.76422453,0.00028325,7]
[334420245,1723077045237,-500.0,0.00028325,7]
[334420246,1723077045246,-500.0,0.00028325,7]
[334420248,1723077045256,-154.60575532,0.00028325,7]
[334420250,1723077045266,-793.65,0.00028325,7]
[334420252,1723077045276,-500.0,0.00028325,7]
[334420254,1723077045285,-500.0,0.00028325,7]
[334420256,1723077045295,-500.0,0.00028325,7]
[334420258,1723077045305,-500.0,0.00028325,7]
[334420260,1723077045314,-201.13826924,0.00028325,7]
[334420262,1723077045324,-500.0,0.00028325,7]
[334420264,1723077045333,-500.0,0.00028325,7]
[334420265,1723077045342,-500.0,0.00028325,7]
[334420267,1723077045352,-500.0,0.00028325,7]
[334420269,1723077045362,-655.16,0.00028325,7]
[334420271,1723077045371,-501.34082611,0.00028325,7]
[334420272,1723077045380,-500.0,0.00028325,7]
[334420273,1723077045390,-500.0,0.00028325,7]
[334420274,1723077045399,-500.0,0.00028325,7]
[334420275,1723077045409,-351.24153804,0.00028325,7]
[334420297,1723078149137,-302.2110247,0.00019451,2]
[334420334,1723078231934,-548.55011362,0.00023577,2]
[334420375,1723078240284,-90.25682621,0.00023577,2]
[334420376,1723078240296,-200.0,0.00026027,2]
[334420378,1723078240308,-401.90034501,0.00026575,2]
[334420379,1723078240318,-431.49933259,0.00028021,2]
[334420380,1723078240328,-431.49933255,0.00028044,2]
[334420381,1723078240338,-431.49933255,0.00028067,2]
[334420382,1723078240349,-431.49933255,0.0002809,2]
[334420383,1723078240359,-4091.06788004,0.0002809,3]
[334420384,1723078240370,-532.09,0.0002809,3]
[334420385,1723078240379,-500.0,0.00028099,2]
[334420386,1723078240389,-162.2318803,0.00028099,2]
[334420387,1723078240400,-500.0,0.00028099,2]
[334420388,1723078240409,-409.0345079,0.00028099,2]
[334420389,1723078240420,-936.74,0.00028099,7]
[334420390,1723078240430,-695.87,0.00028099,7]
[334420391,1723078240440,-18534.71249219,0.000281,21]
[334420392,1723078240450,-43678.52183847,0.000281,2]
[334420582,1723079438385,-200.0,0.00026027,2]
[334420583,1723079438397,-178.193782,0.00026427,2]
[334420584,1723079438408,-2625.4027581,0.00026485,2]
[334420585,1723079438419,-514.8,0.0002787,120]
[334420586,1723079438430,-514.8,0.0002787,120]
[334420587,1723079438441,-514.801,0.0002787,120]
[334420588,1723079438454,-514.8,0.0002787,120]
[334420589,1723079438464,-514.8,0.0002787,120]
[334420590,1723079438474,-215.74966628,0.00027897,2]
[334420591,1723079438483,-215.74966627,0.000279,2]
[334420592,1723079438493,-745.01,0.00027987,3]
[334420593,1723079438503,-620.84,0.00027987,3]
[334420594,1723079438512,-517.37,0.00027987,3]
[334420595,1723079438522,-3886.51448603,0.00027988,3]
[334420596,1723079438535,-11659.5434581,0.00027988,3]
[334420597,1723079438546,-7568.42113322,0.0002799,3]
[334420637,1723079441501,-11864.15129698,0.0002799,3]
[334420638,1723079441511,-9400.1671533,0.00027996,21]
[334420639,1723079441520,-151.0,0.00027996,4]
[334420640,1723079441534,-738.97,0.00027996,7]
[334420641,1723079441548,-4344.86,0.00027996,7]
[334420642,1723079441558,-500.0,0.00027996,2]
[334420643,1723079441568,-486.32415553,0.00027996,2]
[334420644,1723079441579,-500.0,0.00027996,7]
[334420645,1723079441588,-6938.74068046,0.00027996,7]
[334420687,1723079443366,-829.61480676,0.00027996,7]
[334420688,1723079443386,-1247.00275819,0.00027996,7]
[334420689,1723079443477,-379.94175459,0.00027996,7]
[334420690,1723079443487,-1008.45824532,0.00027996,7]
[334420729,1723080273923,169.82453,0.00014247,2]
[334420730,1723080329613,197.97499817,0.00014247,2]
[334420731,1723080340894,781.59557702,0.00014247,2]
[334420732,1723080398013,154.77542449,0.00014247,2]
[334420733,1723080412117,-159.31736111,0.00017269,2]
[334420802,1723080633083,-417.07896757,0.00017269,2]
[334420804,1723080633093,-2278.01854997,0.00019451,3]
[334420806,1723080633102,-195.55298708,0.00019999,2]
[334420808,1723080633111,-200.0,0.00026027,2]
[334420810,1723080633120,-167.875504,0.00026044,2]
[334420812,1723080633130,-167.875504,0.00026384,2]
[334420814,1723080633139,-167.875504,0.00026723,2]
[334420816,1723080633149,-167.875504,0.00027062,2]
[334420818,1723080633158,-167.875504,0.00027401,2]
[334420819,1723080633167,-2003.99341767,0.000275,7]
[334420820,1723080633176,-223.0,0.00027506,2]
[334420822,1723080633190,-379.8619679,0.00027507,2]
[334420824,1723080633199,-217.1776358,0.00027507,2]
[334420826,1723080633209,-492.9285113,0.00027797,2]
[334420827,1723080633218,-492.9285113,0.0002782,2]
[334420829,1723080633227,-492.9285113,0.00027844,2]
[334420831,1723080633236,-492.9285113,0.00027867,2]
[334420833,1723080633246,-299.13,0.0002788,3]
[334420835,1723080633255,-498.08,0.0002788,3]
[334420837,1723080633264,-415.07,0.0002788,3]
[334420838,1723080633274,-1263.88694928,0.00027887,3]
[334420841,1723080633286,-3921.54431091,0.00027887,3]
[334420842,1723080633296,-5185.43126019,0.00027888,3]
[334420843,1723080633306,-1390.91,0.00027888,7]
[334420845,1723080633316,-583.08,0.00027888,7]
[334420847,1723080633326,-5272.6,0.00027888,7]
[334420848,1723080633336,-373.8124289,0.00027888,7]
[334420875,1723080638887,-545.76851484,0.00020932,2]
[334420876,1723080638897,-2130.55117555,0.00021916,2]
[334420878,1723080638907,-1321.7975711,0.00027888,7]
[334420880,1723080638919,-346.78960343,0.00027888,7]
[334420882,1723080638928,-1436.33,0.00027888,7]
[334420884,1723080638938,-502.07903161,0.00027888,7]
[334420885,1723080638952,-500.0,0.00027888,7]
[334420886,1723080638963,-500.0,0.00027888,7]
[334420887,1723080638974,-500.0,0.00027888,7]
[334420888,1723080638984,-632.50901331,0.00027888,7]
[334420889,1723080638995,-500.0,0.00027888,7]
[334420890,1723080639005,-504.65317758,0.00027888,7]
[334420891,1723080639015,-581.38,0.00027888,7]
[334420892,1723080639025,-500.0,0.00027888,7]
[334420893,1723080639035,-265.55633883,0.00027888,7]
[334420894,1723080639044,-649.19,0.00027888,7]
[334420895,1723080639053,-10370.8625204,0.00027888,3]
[334420896,1723080639063,-10370.8625204,0.00027889,3]
[334420897,1723080639074,-500.0,0.00027889,2]
[334420898,1723080639084,-503.07973428,0.00027889,2]
[334420899,1723080639093,-9267.3562461,0.0002789,21]
[334420900,1723080639102,-11110.28825497,0.0002789,21]
[334420901,1723080639113,-492.9285113,0.0002789,2]
[334420902,1723080639123,-5185.43126019,0.0002789,3]
[334420903,1723080639132,-51615.73804961,0.0002789,3]
[334420904,1723080639141,-2000.0,0.00027896,2]
[334420905,1723080639151,-738.97,0.00027896,7]
[334420906,1723080639160,-4344.86,0.00027896,7]
[334420907,1723080639170,-500.0,0.00027896,7]
[334420908,1723080639179,-9292.94,0.00027896,7]
[334420909,1723080639188,-5508.27,0.00027896,7]
[334420910,1723080639200,-2395.08,0.00027896,7]
[334420911,1723080639209,-1255.51,0.00027896,7]
[334420912,1723080639218,-1252.02,0.00027896,7]
[334420913,1723080639227,-3489.7,0.00027897,7]
[334420914,1723080639236,-789.77,0.00027897,7]
[334420915,1723080639246,-2114.5,0.00027897,7]
[334420916,1723080639255,-500.0,0.00027897,7]
[334420917,1723080639265,-2964.41,0.00027897,7]
[334420918,1723080639275,-500.0,0.00027897,7]
[334420919,1723080639284,-2466.96,0.00027897,7]
[334420920,1723080639294,-500.0,0.00027897,7]
[334420921,1723080639303,-2912.6,0.00027897,7]
[334420922,1723080639313,-2172.48,0.00027897,7]
[334420923,1723080639322,-500.0,0.00027897,7]
[334420924,1723080639333,-2699.34,0.00027897,7]
[334420925,1723080639342,-13947.02,0.00027897,7]
[334420926,1723080639351,-500.0,0.00027897,7]
[334420927,1723080639361,-3768.62,0.00027897,7]
[334420928,1723080639370,-978.12,0.00027897,7]
[334420929,1723080639380,-2462.2,0.00027897,7]
[334420930,1723080639390,-500.0,0.00027897,7]
[334420931,1723080639399,-500.0,0.00027897,7]
[334420932,1723080639408,-1122.26,0.00027897,7]
[334420933,1723080639418,-500.0,0.00027897,7]